bitfinex-derivatives/quotes_ETHF0:USTF0_20250824
["timestamp","ask_amount","ask_price","bid_price","bid_amount"]
[1756058650894,1.6055,4906.7,4905.5,0.4336]
[1756058651095,0.40777,4906.2,4905.8,0.4078]
[1756058651301,1.1427,4906.1,4905.5,0.4336]
[1756058651908,1.1427,4906.6,4906.5,0.4336]
[1756058652202,1.6055,4906.6,4906.5,1.6413]
[1756058652606,1.6055,4906.6,4906.5,1.0588]
[1756058652996,0.4628,4907.1,4906.6,0.40773]
[1756058653306,1.6055,4906.9,4906.8,0.4336]
[1756058653510,1.6055,4907.4,4907.0,0.40769]
[1756058653808,0.40765,4907.6,4907.0,0.40769]
[1756058654104,1.6055,4907.5,4907.1,0.40768]
[1756058654303,0.40765,4907.6,4907.1,0.40768]
[1756058654501,1.6055,4907.3,4907.1,0.40769]
[1756058654701,1.6055,4907.2,4907.1,0.40769]
[1756058656004,1.6055,4907.7,4907.6,0.40764]
[1756058656208,1.1427,4907.7,4907.6,2.04894]
[1756058656904,1.6055,4907.7,4907.6,2.04894]
[1756058657608,1.1427,4907.7,4907.6,2.04894]
[1756058658200,1.6055,4907.7,4907.6,2.04894]
[1756058658403,1.6055,4907.7,4907.6,1.46644]
[1756058658604,1.6055,4907.7,4907.6,0.84124]
[1756058658808,1.6055,4907.7,4907.6,0.4336]
[1756058660205,0.5914,4907.6,4907.2,1.2077]
[1756058660404,1.6055,4907.5,4907.4,0.40766]
[1756058660600,1.0141,4908.0,4906.8,0.4077]
[1756058660800,0.40768,4907.3,4906.7,1.03291]
[1756058660999,0.40774,4906.5,4904.8,2.44789438]
[1756058661205,0.40772,4906.8,4906.3,0.40775]
[1756058661511,1.1427,4906.5,4906.4,0.4336]
[1756058661712,1.6055,4906.5,4906.4,0.4336]
[1756058664607,0.40776,4906.3,4905.9,0.40778]
[1756058664810,0.0203,4906.7,4905.7,0.4078]
[1756058665008,0.40778,4906.1,4905.7,0.4078]
[1756058665307,0.5513,4906.6,4905.5,0.40782]
[1756058665308,1.6055,4906.5,4905.5,0.40782]
[1756058665509,0.40779,4905.9,4905.5,0.40782]
[1756058665712,1.1427,4905.8,4905.5,0.40782]
[1756058666008,1.6055,4906.1,4905.9,1.0588]
[1756058666210,1.6055,4906.0,4905.9,1.0588]
[1756058666413,1.6055,4906.0,4905.9,0.4336]
[1756058667212,0.0203,4906.5,4905.6,0.5825]
[1756058667412,1.6055,4905.8,4905.6,1.6413]
[1756058667611,1.6055,4905.7,4905.6,1.6413]
[1756058668216,1.1427,4905.7,4905.6,1.6413]
[1756058668409,1.1427,4906.4,4905.2,1.6413]
[1756058668816,0.4628,4906.3,4905.5,1.0588]
[1756058669210,2.0255,4906.3,4906.2,1.512]
[1756058669412,2.3287,4906.8,4906.7,0.6913]
[1756058669614,2.2604,4906.8,4906.7,2.7197]
[1756058669816,2.7232,4906.8,4906.7,2.1372]
[1756058670010,2.7232,4906.8,4906.7,1.512]
[1756058670405,2.7232,4906.8,4906.7,0.308]
[1756058670605,1.01907,4907.9,4906.0,1.512]
[1756058670606,2.1719,4906.1,4906.0,1.512]
[1756058670813,2.7232,4906.1,4906.0,1.512]
[1756058671013,2.7232,4906.1,4906.0,2.7197]
[1756058671209,1.5805,4906.5,4906.4,0.6951]
[1756058671511,2.7232,4906.5,4906.4,2.7197]
[1756058671716,0.40771,4906.9,4906.4,2.7197]
[1756058671717,0.4628,4906.9,4906.5,0.40774]
[1756058671917,2.42,4906.9,4906.8,2.7197]
[1756058672218,1.9572,4906.9,4906.8,2.7197]
[1756058672511,1.9572,4907.2,4907.1,1.0784]
[1756058672811,1.9572,4907.2,4907.1,3.12739]
[1756058673012,1.0542,4908.7,4907.6,1.6413]
[1756058673209,1.0542,4908.5,4907.6,1.6413]
[1756058673411,1.0542,4908.5,4908.0,0.4076]
[1756058673610,19.822,4909.8,4908.3,0.84118]
[1756058673611,0.4628,4908.9,4908.3,0.84118]
[1756058673809,1.6055,4908.9,4908.3,0.84118]
[1756058674212,0.1,4910.2,4910.1,1.0588]
[1756058674415,0.4628,4911.2,4910.1,1.6413]
[1756058674715,0.4628,4911.2,4910.4,0.40741]
[1756058674908,0.4628,4911.2,4910.5,0.25188278]
[1756058675110,0.4628,4911.2,4910.7,0.4336]
[1756058675311,0.4628,4910.9,4910.8,0.25199885]
[1756058675513,1.0542,4910.7,4909.9,0.4336]
[1756058675708,1.0542,4910.7,4910.0,0.2517691]
[1756058675913,0.5513,4910.6,4910.1,0.2518058]
[1756058676107,0.5513,4910.4,4910.2,0.6854058]
[1756058676318,1.6055,4910.4,4910.3,0.2518058]
[1756058676517,1.6055,4910.4,4910.3,0.6854058]
[1756058676720,0.4628,4910.9,4910.3,1.8931058]
[1756058676908,0.4628,4910.9,4910.4,0.2518058]
[1756058677113,0.4511,4913.5,4911.2,0.5785]
[1756058677312,0.4511,4914.5,4913.4,0.438]
[1756058677515,1.1922,4914.2,4913.4,0.438]
[1756058678109,1.59933,4913.9,4913.3,0.5785]
[1756058678316,1.6433,4913.8,4912.9,0.438]
[1756058678516,1.6433,4913.8,4913.0,0.2505808]
[1756058678723,1.6433,4913.8,4912.9,0.438]
[1756058678915,1.6433,4913.8,4913.0,0.25060397]
[1756058679111,1.058,4913.8,4912.9,0.438]
[1756058679318,0.4511,4913.0,4912.3,0.438]
[1756058679716,0.4511,4913.0,4912.4,0.27405727]
[1756058679923,1.6433,4913.0,4912.6,1.5931]
[1756058680113,1.6433,4913.0,4912.7,0.71205727]
[1756058680311,1.59936,4913.5,4912.8,1.86715727]
[1756058680512,0.40718,4913.3,4912.9,0.27405727]
[1756058680712,0.40718,4913.3,4913.0,0.27405727]
[1756058680921,0.40718,4913.3,4912.3,0.5785]
[1756058681116,1.6433,4915.2,4912.9,0.4072]
[1756058681318,1.59931,4914.2,4913.2,1.1551]
[1756058681523,1.59931,4914.2,4913.4,0.438]
[1756058681821,0.0203,4915.7,4913.6,1.1551]
[1756058682011,1.058,4915.9,4913.8,1.0165]
[1756058682216,0.40706,4914.8,4914.1,1.5931]
[1756058682421,1.1922,4914.9,4914.2,0.27387334]
[1756058682621,1.1922,4914.9,4914.3,0.27387334]
[1756058682817,1.1922,4914.9,4914.5,1.5931]
[1756058683118,0.1598838,4915.7,4914.6,1.86610571]
[1756058683313,0.1598838,4915.7,4914.1,0.438]
[1756058683314,0.40706,4914.7,4914.1,0.438]
[1756058683511,0.6069,4914.8,4914.1,0.438]
[1756058684113,1.6433,4915.4,4914.3,1.0165]
[1756058684315,0.40706,4914.7,4913.8,0.40712]
[1756058684515,0.4511,4915.4,4914.0,2.00021]
[1756058684723,0.4511,4915.4,4913.9,0.27933945]
[1756058684724,0.40709,4914.4,4913.7,1.1551]
[1756058684925,0.40709,4914.4,4913.8,0.71736157]
[1756058685124,0.40708,4914.5,4913.5,0.40716]
[1756058685426,0.5853,4914.6,4913.9,1.5931]
[1756058685618,0.5853,4914.6,4913.7,0.40714]
[1756058685619,0.16394754,4915.7,4914.2,0.4071]
[1756058685818,0.99232,4915.1,4914.4,1.0146]
[1756058686119,0.6069,4914.4,4913.9,0.438]
[1756058686325,0.5853,4914.6,4914.0,0.27907267]
[1756058686621,0.40709,4914.3,4913.6,1.5931]
[1756058686821,0.6069,4914.1,4913.9,1.5931]
[1756058687022,0.40709,4914.4,4913.3,0.40717]
[1756058687217,0.40712,4914.0,4913.5,0.438]
[1756058687425,1.1922,4913.9,4913.6,1.1551]
[1756058687728,1.1922,4913.8,4913.7,0.438]
[1756058687922,0.4071,4914.2,4913.4,0.40716]
[1756058688124,0.6069,4914.4,4913.7,0.40714]
[1756058688322,0.6069,4914.4,4913.8,1.0165]
[1756058688523,0.6069,4914.4,4913.8,1.5931]
[1756058689330,0.40709,4914.3,4913.8,1.5931]
[1756058689518,0.40709,4914.3,4913.9,1.5931]
[1756058689721,0.40709,4914.3,4913.7,0.40714]
[1756058689917,0.40709,4914.3,4913.9,0.5785]
[1756058690126,1.1922,4914.2,4914.1,0.438]
[1756058690325,1.01749,4915.5,4914.1,1.5931]
[1756058690522,0.4511,4915.3,4914.1,1.5931]
[1756058690718,1.6433,4915.2,4914.1,1.5931]
[1756058690922,0.40706,4914.7,4914.1,2.0002]
[1756058691126,1.6433,4915.2,4914.4,1.0165]
[1756058691529,0.40705,4914.9,4914.4,1.0165]
[1756058691731,0.40706,4914.8,4914.6,1.5931]
[1756058691925,1.59926,4914.8,4914.7,0.438]
[1756058692318,0.40707,4914.6,4914.2,0.40709]
[1756058692523,0.40709,4914.4,4914.0,0.40711]
[1756058692725,1.1922,4914.3,4914.2,1.5931]
[1756058693023,2.0504,4914.3,4913.8,0.40713]
[1756058693232,1.6433,4914.2,4913.9,0.438]
[1756058693425,1.6433,4914.2,4913.8,0.40713]
[1756058693622,1.1922,4914.1,4913.9,1.5931]
[1756058693827,1.6433,4914.0,4913.9,0.438]
[1756058694026,1.6433,4914.0,4913.4,1.5931]
[1756058694220,1.058,4914.5,4913.4,0.438]
[1756058694525,1.6433,4913.5,4912.9,0.8452]
[1756058694727,2.05047,4913.4,4913.1,0.438]
[1756058694930,1.1922,4913.3,4913.2,0.438]
[1756058695119,1.1922,4913.3,4913.2,1.5931]
[1756058695534,1.6433,4913.3,4912.7,1.1551]
[1756058695828,1.6433,4912.9,4912.8,0.27899022]
[1756058696031,0.6069,4912.8,4912.7,1.1551]
[1756058696224,0.5853,4912.9,4912.7,1.43413954]
[1756058696424,0.99251,4912.9,4912.8,1.43413954]
[1756058696628,2.05051,4912.9,4912.8,1.29363954]
[1756058696931,2.05051,4912.9,4912.3,0.438]
[1756058696932,1.6433,4912.9,4912.3,0.438]
[1756058697118,1.01793,4913.4,4912.5,0.438]
[1756058697325,2.05052,4912.7,4912.6,0.27948295]
[1756058697525,0.6069,4912.6,4912.1,1.5931]
[1756058697732,1.01787,4913.7,4912.3,0.5785]
[1756058697733,0.40721,4912.9,4912.3,0.5785]
[1756058697922,0.40722,4912.8,4912.4,0.27982869]
[1756058698128,2.05053,4912.7,4912.5,0.27982869]
[1756058698427,1.0381,4914.0,4912.6,1.87292869]
[1756058698725,0.40721,4912.9,4912.8,1.5931]
[1756058699126,1.59941,4912.9,4912.8,1.5931]
[1756058699328,1.1922,4913.2,4912.9,1.5931]
[1756058699631,1.1922,4913.2,4913.1,1.5931]
[1756058699827,1.6433,4913.2,4913.1,1.87379427]
[1756058700229,2.05049,4913.2,4913.1,0.28069427]
[1756058701628,0.2196,4912.7,4910.6,0.73711593]
[1756058701931,1.1922,4911.0,4909.4,1.1551]
[1756058702125,0.1993,4910.6,4910.1,1.5931]
[1756058702331,0.4074,4910.6,4910.2,1.1551]
[1756058702530,0.4074,4910.7,4910.3,0.5785]
[1756058702827,0.40741,4910.5,4910.3,1.5931]
[1756058703035,1.1922,4910.4,4910.3,0.438]
[1756058703234,1.3915,4910.4,4910.3,0.438]
[1756058703540,1.3915,4910.4,4909.8,1.1551]
[1756058703733,0.40742,4910.3,4909.9,1.0146]
[1756058703937,0.6069,4910.3,4909.2,0.0203]
[1756058704135,1.01433,4910.3,4910.1,1.1551]
[1756058704436,0.40745,4910.0,4909.7,0.438]
[1756058704638,1.01435,4910.0,4909.8,1.1551]
[1756058704834,1.1922,4910.0,4909.9,0.438]
[1756058705234,0.40748,4909.7,4909.5,0.438]
[1756058705535,1.3915,4909.6,4909.5,0.438]
[1756058705725,1.44760204,4913.1,4909.0,1.1551]
[1756058705726,0.40752,4909.2,4909.0,1.1551]
[1756058705927,0.0203,4910.3,4908.7,1.0165]
[1756058705928,0.6069,4908.8,4908.7,1.0165]
[1756058706137,0.6069,4908.8,4908.7,1.5931]
[1756058706334,1.1922,4908.8,4908.7,1.5931]
[1756058706531,1.3915,4908.8,4908.7,0.438]
[1756058707340,0.1847,4909.5,4908.9,0.437]
[1756058707638,2.23937253,4912.2,4909.5,1.6349]
[1756058707639,0.5782,4909.9,4909.5,1.6349]
[1756058707934,0.5782,4909.9,4909.4,0.40749]
[1756058708129,0.96454,4910.1,4909.8,1.6349]
[1756058708326,0.5571,4910.0,4909.2,0.6107]
[1756058708529,1.32,4909.3,4908.8,0.40755]
[1756058708736,1.32,4909.3,4908.7,0.437]
[1756058708737,1.1353,4909.2,4909.0,1.0477]
[1756058708932,1.32,4909.9,4909.1,0.5872]
[1756058709138,1.1353,4909.9,4909.4,0.40749]
[1756058709438,1.1353,4909.9,4909.6,1.1979]
[1756058709638,0.5571,4909.8,4909.7,0.437]
[1756058709839,1.1353,4909.8,4909.7,0.437]
[1756058710238,1.32,4909.8,4908.9,0.6107]
[1756058710534,0.0203,4910.1,4908.5,0.99476]
[1756058710735,0.7418,4908.9,4908.3,1.01829]
[1756058710942,1.32,4908.9,4908.3,1.01829]
[1756058711831,2.03609,4912.9,4908.0,1.01903]
[1756058712143,2.03609,4912.9,4909.0,0.40752]
[1756058712144,0.40748,4909.7,4909.0,0.40752]
[1756058712330,0.1847,4909.7,4908.7,0.40755]
[1756058712532,1.1353,4909.6,4908.7,0.40755]
[1756058712939,1.1353,4909.6,4908.9,0.40753]
[1756058713239,1.1353,4909.6,4909.4,0.40749]
[1756058713436,1.1353,4909.6,4909.5,1.0477]
[1756058713636,1.1353,4909.6,4909.5,1.6349]
[1756058713837,1.1353,4910.2,4909.5,1.6349]
[1756058714135,1.1353,4910.2,4909.6,0.40748]
[1756058714329,0.041,4910.0,4909.6,0.40748]
[1756058714538,0.041,4910.0,4909.9,1.6349]
[1756058714736,1.1763,4910.0,4909.9,1.6349]
[1756058714942,0.041,4910.0,4909.9,2.04236]
[1756058715246,1.1763,4910.0,4909.9,1.6349]
[1756058716646,0.5571,4909.6,4908.9,0.40753]
[1756058716838,0.40747,4909.7,4908.9,0.40753]
[1756058717037,0.40747,4909.7,4908.9,0.84453]
[1756058717332,0.7418,4909.0,4908.9,0.437]
[1756058717536,0.98573,4909.1,4908.8,0.5872]
[1756058717738,0.5782,4909.1,4908.8,0.5872]
[1756058717941,0.5571,4909.5,4909.2,0.40751]
[1756058718146,0.5782,4909.8,4909.7,0.6107]
[1756058718443,0.5782,4909.8,4909.7,1.0477]
[1756058718648,0.041,4910.0,4909.8,0.5872]
[1756058718847,0.041,4910.0,4909.9,1.45516]
[1756058719440,0.041,4910.0,4909.9,2.04236]
[1756058720037,1.361,4910.0,4909.9,0.437]
[1756058720237,0.5782,4909.8,4909.6,0.84448]
[1756058720440,1.32,4909.7,4909.6,0.437]
[1756058720636,1.32,4909.7,4909.6,0.84448]
[1756058720835,0.5571,4909.7,4909.6,2.04238]
[1756058721051,0.041,4910.0,4909.8,0.40746]
[1756058721236,0.041,4910.0,4909.9,1.6349]
[1756058721848,0.40734,4911.4,4910.8,0.40737]
[1756058721849,0.96444,4911.4,4910.8,0.40737]
[1756058722046,0.96444,4911.4,4910.9,0.437]
[1756058722245,1.1353,4911.3,4909.9,0.0203]
[1756058722441,1.5426,4911.8,4910.4,1.1979]
[1756058722649,1.5426,4911.8,4911.2,0.40734]
[1756058722848,1.5426,4911.8,4911.2,1.60524]
[1756058723046,0.40727,4912.2,4911.5,0.40732]
[1756058723246,1.1353,4911.8,4911.7,0.437]
[1756058723443,0.40726,4912.4,4911.9,0.437]
[1756058723641,0.40723,4912.7,4912.1,0.40727]
[1756058723848,0.98547,4912.2,4911.4,0.40733]
[1756058724048,1.54261,4911.7,4911.3,1.0477]
[1756058724245,0.5782,4911.5,4911.4,0.25389157]
[1756058724448,1.361,4911.5,4911.4,0.25389157]
[1756058724650,1.361,4911.9,4911.6,0.437]
[1756058724845,1.361,4911.8,4911.2,0.40734]
[1756058725047,1.361,4911.8,4911.3,0.66142487]
[1756058725247,0.0203,4912.3,4911.1,0.437]
[1756058725248,0.5782,4911.6,4911.4,0.25409487]
[1756058725449,0.5782,4911.6,4909.8,1.01866]
[1756058725450,1.361,4911.6,4911.5,0.25409487]
[1756058725952,1.361,4911.6,4910.6,0.8444]
[1756058726145,1.361,4911.0,4910.7,0.25437569]
[1756058726340,1.361,4910.9,4910.8,0.25437569]
[1756058727052,1.361,4910.9,4910.8,0.25455192]
[1756058727451,1.361,4910.9,4910.8,0.66193192]
[1756058727847,1.1353,4910.9,4910.8,1.09893192]
[1756058728050,1.1353,4910.9,4910.8,1.70963192]
[1756058728354,0.2257,4911.4,4910.8,1.88945192]
[1756058728654,0.5571,4911.5,4911.1,0.99455]
[1756058728951,0.5571,4911.5,4911.4,0.437]
[1756058729249,1.1353,4911.5,4911.4,0.69155192]
[1756058729451,1.361,4911.5,4911.4,0.69155192]
[1756058730053,0.40729,4911.9,4911.4,0.25455192]
[1756058730253,1.01805,4912.8,4911.5,0.25455192]
[1756058730451,1.54259,4912.0,4911.9,1.0242]
[1756058730650,1.54259,4912.0,4911.9,1.88945192]
[1756058730949,1.1353,4912.0,4911.9,1.88945192]
[1756058731160,1.1353,4912.1,4912.0,0.437]
[1756058731348,1.1353,4912.1,4912.0,0.69155192]
[1756058732348,1.54252,4912.7,4912.0,0.25455192]
[1756058732654,29.3623,4913.6,4912.8,1.0477]
[1756058732655,0.5571,4912.9,4912.8,1.0477]
[1756058732845,0.5571,4912.9,4912.8,1.88945192]
[1756058733247,0.5571,4913.1,4913.0,1.0477]
[1756058733450,0.98537,4913.4,4913.0,1.0477]
[1756058733652,1.1353,4913.4,4913.2,1.60508]
[1756058733852,1.1353,4913.4,4913.3,0.437]
[1756058734058,1.54245,4913.6,4913.4,1.0242]
[1756058734253,0.40715,4913.6,4913.4,1.6349]
[1756058734455,1.1353,4913.5,4913.4,1.0477]
[1756058734649,1.3481,4913.5,4913.4,0.437]
[1756058735257,0.791,4913.5,4913.4,1.0477]
[1756058735855,1.3481,4913.5,4913.4,0.437]
[1756058736656,1.1353,4913.3,4913.2,0.84418]
[1756058736956,1.0883,4913.6,4913.5,0.4342]
[1756058737445,0.554,4913.6,4913.5,1.568]
[1756058737644,1.0883,4913.6,4913.5,1.568]
[1756058737952,0.5343,4914.0,4913.9,0.84132]
[1756058738147,0.4071,4914.2,4913.9,1.42952]
[1756058738351,1.49548,4913.3,4912.6,0.4342]
[1756058738551,1.2985,4912.8,4912.7,0.68860026]
[1756058738753,1.0883,4912.8,4912.7,1.0224]
[1756058739052,1.0883,4912.8,4912.7,1.568]
[1756058739256,0.4072,4913.0,4912.7,0.95282]
[1756058739449,1.0883,4912.9,4912.8,1.0224]
[1756058740053,1.49551,4912.9,4912.8,1.0224]
[1756058740250,1.70571,4912.9,4912.6,0.40723]
[1756058740556,1.2985,4912.6,4912.5,0.4342]
[1756058741055,0.7642,4913.0,4912.8,0.4342]
[1756058741250,1.0883,4912.9,4912.8,0.4342]
[1756058741453,1.2985,4912.9,4912.8,0.4342]
[1756058741948,1.2985,4912.9,4911.3,30.35535]
[1756058742148,0.40722,4912.8,4911.9,1.568]
[1756058742454,0.40722,4912.8,4912.0,0.25445791]
[1756058742662,1.2985,4912.4,4912.1,0.25445791]
[1756058742854,1.0883,4912.3,4912.2,1.1338]
[1756058743454,1.0883,4912.3,4912.2,1.568]
[1756058743847,0.40725,4912.4,4912.0,0.4342]
[1756058744058,1.2985,4912.1,4912.0,0.4342]
[1756058744254,1.0181,4912.6,4911.4,0.4342]
[1756058744554,0.0203,4912.8,4911.4,0.4342]
[1756058744758,1.0883,4911.9,4911.3,0.4342]
[1756058745058,0.5343,4911.4,4911.3,0.84154]
[1756058745259,1.2985,4911.4,4911.3,0.84154]
[1756058745653,1.0883,4911.4,4911.3,1.97534]
[1756058746659,1.2985,4911.4,4911.3,1.97534]
[1756058747054,1.2985,4911.4,4911.3,0.4342]
[1756058747455,1.2985,4911.4,4910.9,0.99557]
[1756058747654,0.40736,4911.1,4910.7,0.4342]
[1756058747852,0.5343,4910.8,4910.7,0.40739]
[1756058748062,1.0883,4910.8,4910.7,0.5882]
[1756058748358,1.0883,4911.0,4910.9,1.54117]
[1756058748558,1.0883,4911.0,4910.9,1.97537]
[1756058748758,1.2985,4911.0,4910.9,1.97537]
[1756058749554,1.2985,4911.0,4910.9,0.4342]
[1756058750158,1.2985,4911.0,4910.9,1.568]
[1756058753461,1.2985,4911.0,4910.9,1.82524274]
[1756058753757,1.472,4911.0,4910.9,2.87054274]
[1756058754158,2.3235,4911.5,4911.4,0.2767]
[1756058754364,2.3235,4911.5,4911.4,0.7109]
[1756058755659,2.3235,4911.1,4911.0,0.2767]
[1756058755860,0.3837,4910.1,4910.0,1.45274]
[1756058756060,0.918,4910.1,4910.0,2.68984331]
[1756058756366,1.8425,4910.1,4910.0,3.27804331]
[1756058756755,2.3235,4910.1,4910.0,1.30260331]
[1756058756959,2.3235,4910.1,4910.0,0.91060331]
[1756058757657,1.8425,4910.1,4910.0,2.87060331]
[1756058758663,2.0527,4910.5,4910.4,1.0453]
[1756058758865,2.3235,4910.5,4910.4,1.4795]
[1756058759970,1.025,4910.1,4910.0,2.2213]
[1756058760167,2.3235,4910.1,4910.0,2.47838861]
[1756058760368,2.3235,4910.1,4910.0,1.34458861]
[1756058760870,2.3235,4910.1,4910.0,1.73658861]
[1756058761169,2.3235,4910.1,4910.0,0.92576114]
[1756058761365,2.3235,4910.1,4910.0,0.53376114]
[1756058761566,1.025,4909.8,4909.7,1.2415]
[1756058761767,0.4074,4910.7,4909.7,2.89059723]
[1756058761964,2.0158,4911.5,4911.4,1.0875]
[1756058762164,2.0158,4911.5,4911.4,1.6331]
[1756058762371,0.9908,4911.5,4911.4,0.9798]
[1756058762570,0.554,4911.9,4911.5,0.40732]
[1756058762765,29.328,4913.0,4911.7,1.0224]
[1756058762766,0.9908,4911.8,4911.7,1.0224]
[1756058762968,1.01787,4913.7,4911.8,0.0203]
[1756058763269,1.01787,4913.7,4912.5,1.568]
[1756058763270,0.554,4912.6,4912.5,1.568]
[1756058763469,0.554,4912.8,4912.6,0.5882]
[1756058763675,0.554,4912.8,4912.7,1.568]
[1756058763974,1.01774,4914.3,4911.4,2.44651438]
[1756058763975,0.0203,4913.3,4912.3,1.568]
[1756058764176,0.9908,4912.8,4912.3,0.5456]
[1756058764369,0.9908,4913.0,4912.8,1.568]
[1756058764569,0.9908,4913.0,4912.9,1.568]
[1756058764977,1.5251,4913.0,4912.9,0.5456]
[1756058765470,1.93233,4912.7,4912.0,0.4342]
[1756058765666,0.4368,4912.6,4912.3,0.84145]
[1756058765870,0.9908,4912.5,4912.4,1.568]
[1756058766073,0.554,4912.9,4912.7,1.38702]
[1756058766280,0.4072,4913.1,4912.5,0.40724]
[1756058766473,0.4072,4913.1,4912.6,0.40722]
[1756058766676,0.844,4913.1,4912.8,0.4342]
[1756058766875,0.5865,4913.0,4912.9,1.5541]
[1756058767071,1.0171,4913.0,4912.9,0.9721]
[1756058767373,1.5603,4913.0,4912.9,0.5707]
[1756058768082,0.5432,4913.6,4913.0,0.4072]
[1756058768279,0.5865,4913.4,4913.2,0.582]
[1756058768471,0.5865,4913.4,4912.0,2.44639438]
[1756058768472,1.5603,4913.4,4912.8,0.40721]
[1756058768671,1.0171,4913.0,4912.7,0.40722]
[1756058768872,1.0171,4912.9,4912.8,0.5707]
[1756058769080,1.0171,4912.9,4912.8,0.9721]
[1756058769278,1.0171,4912.9,4912.8,0.5707]
[1756058769474,0.95042,4912.8,4912.6,0.5707]
[1756058769682,0.5865,4912.5,4912.3,0.4014]
[1756058769875,1.0171,4912.4,4912.3,0.40726]
[1756058770081,0.5432,4912.4,4912.3,0.2567948]
[1756058770282,0.5432,4914.0,4912.5,0.5707]
[1756058770479,0.5432,4912.6,4912.5,0.5707]
[1756058770679,1.5603,4912.6,4912.5,0.5707]
[1756058771179,0.5865,4913.3,4912.6,1.5541]
[1756058771380,1.01769,4914.5,4913.3,0.40717]
[1756058771381,0.40715,4913.7,4913.3,0.40717]
[1756058771584,0.5865,4913.6,4913.5,1.5541]
[1756058772280,1.0171,4913.6,4913.5,1.5541]
[1756058773480,1.0171,4913.6,4913.5,0.5707]
[1756058773678,1.5603,4913.6,4913.5,0.5707]
[1756058773880,2.5487,4913.6,4913.5,1.6267]
[1756058774081,0.3591,4913.9,4913.8,2.98353]
[1756058774478,1.0171,4914.1,4914.0,0.40712]
[1756058774683,29.335,4915.1,4914.4,0.40708]
[1756058774684,0.4306,4914.9,4914.4,0.40708]
[1756058774881,0.4306,4914.9,4914.7,1.5541]
[1756058775081,0.4306,4914.9,4914.8,1.5541]
[1756058775484,0.4306,4914.9,4913.6,1.03817]
[1756058775485,0.40701,4915.3,4915.0,1.5541]
[1756058775687,0.5432,4915.8,4915.1,0.582]
[1756058775883,1.5603,4915.8,4914.8,0.98904]
[1756058776084,0.5865,4914.9,4914.8,0.582]
[1756058776282,0.5865,4914.9,4914.8,0.9834]
[1756058776485,0.5865,4914.9,4914.8,1.5541]
[1756058776682,1.0171,4915.0,4914.9,1.1527]
[1756058776982,1.0171,4915.0,4914.9,1.5541]
[1756058777387,42.04204,4916.6,4914.9,1.5541]
[1756058778387,0.40703,4915.1,4915.0,0.5707]
[1756058778588,0.40703,4915.1,4915.0,1.5541]
[1756058778982,22.33504,4916.6,4915.1,0.5707]
[1756058779180,23.35231,4916.6,4915.4,0.40699]
[1756058779383,0.62409,4915.6,4915.5,1.5541]
[1756058779792,1.21059,4915.6,4915.5,0.5707]
[1756058779993,1.45279,4915.6,4915.5,0.5707]
[1756058780494,1.21059,4915.6,4915.5,0.5707]
[1756058781382,2.19899,4915.6,4915.5,0.5707]
[1756058782285,2.19899,4915.6,4915.5,1.2253]
[1756058782484,2.19899,4915.6,4915.5,2.5764]
[1756058783192,0.76609,4915.6,4915.5,2.5764]
[1756058783691,0.3591,4915.6,4915.5,2.5764]
[1756058783891,0.40691,4916.5,4916.2,0.40693]
[1756058784091,0.76601,4916.5,4916.4,2.5764]
[1756058784292,0.76601,4916.5,4916.4,0.5707]
[1756058784293,2.19891,4916.5,4916.4,0.5707]
[1756058784495,2.19896,4915.9,4915.8,0.5707]
[1756058784691,2.19899,4915.5,4915.4,1.1527]
[1756058784892,2.19899,4915.5,4915.4,0.5707]
[1756058785095,1.35253,4916.2,4916.1,1.0223]
[1756058785398,0.3591,4916.2,4916.1,2.5764]
[1756058785799,1.792,4916.2,4916.1,0.9574]
[1756058785988,1.792,4916.2,4916.1,0.5707]
[1756058786189,0.3591,4915.6,4915.5,1.3511]
[1756058786392,2.19898,4915.6,4915.5,2.5764]
[1756058786596,0.76608,4915.6,4915.5,2.5764]
[1756058786793,0.40697,4915.8,4915.5,1.42928]
[1756058786998,0.40697,4915.8,4915.7,2.5764]
[1756058787197,0.40696,4915.9,4915.7,2.5764]
[1756058787491,1.03748,4917.0,4914.8,1.01762]
[1756058787492,0.2171,4916.4,4916.0,1.037]
[1756058787693,0.40694,4916.2,4916.1,2.5764]
[1756058788692,2.19894,4916.2,4916.1,2.5764]
[1756058789092,2.19894,4916.2,4916.1,0.5707]
[1756058789292,2.19897,4915.7,4915.6,0.9574]
[1756058789800,2.19897,4915.7,4915.6,1.2253]
[1756058790002,2.19897,4915.7,4915.6,2.5764]
[1756058790391,2.19897,4915.7,4915.6,1.593]
[1756058790796,2.19897,4915.7,4915.6,0.5707]
[1756058791699,2.23796,4914.7,4914.6,1.593]
[1756058791896,2.23796,4914.7,4914.6,2.5764]
[1756058793303,0.40702,4915.2,4914.6,2.98347]
[1756058793501,1.97002,4915.2,4915.1,1.0223]
[1756058793706,1.97002,4915.2,4915.1,2.5764]
[1756058794305,2.23792,4915.2,4915.1,0.5707]
[1756058794705,2.53022,4915.2,4915.1,0.5707]
[1756058795310,2.23792,4915.2,4915.1,0.5707]
[1756058795902,2.23792,4915.2,4915.1,2.2087]
[1756058796098,2.23792,4915.2,4915.1,2.5764]
[1756058796805,0.3591,4915.2,4915.1,2.5764]
[1756058797010,1.1894,4915.7,4915.6,2.2442]